bitfinex/quotes_ETHUSD_20250904
["timestamp","ask_amount","ask_price","bid_price","bid_amount"]
[1757023376446,1e-08,4329.8,4329.7,6.61962884]
[1757023376646,1e-08,4329.8,4329.7,6.33182884]
[1757023376850,0.78090001,4329.8,4329.7,6.33182884]
[1757023377051,1.22220001,4329.8,4329.7,6.33182884]
[1757023377356,1e-08,4329.8,4329.7,6.33182884]
[1757023377559,1e-08,4329.8,4329.7,6.61962884]
[1757023377930,1.22220001,4329.8,4329.7,0.1152]
[1757023378130,1.22220001,4329.8,4329.7,4.0252]
[1757023378561,1.22220001,4329.8,4329.7,3.909]
[1757023379063,0.72810001,4329.8,4329.7,4.0242]
[1757023379255,1.22220001,4329.8,4329.7,4.0242]
[1757023379569,1.22220001,4329.8,4329.2,1.702]
[1757023379770,0.9354,4329.7,4329.4,0.1152]
[1757023379938,0.9354,4329.7,4329.6,2.30968218]
[1757023380126,1.2222,4329.7,4329.6,2.30968218]
[1757023380333,1.2222,4329.7,4329.2,1.702]
[1757023380550,0.2868,4329.7,4329.3,3.912]
[1757023380764,0.2868,4329.7,4329.6,0.1152]
[1757023380961,0.2868,4329.7,4329.6,6.33888218]
[1757023381664,1e-08,4329.8,4329.7,2.30962884]
[1757023381830,1e-08,4329.8,4329.7,3.25162512]
[1757023382036,0.28680001,4329.8,4329.7,8.02664965]
[1757023382257,1e-08,4329.8,4329.7,6.22462884]
[1757023382538,1e-08,4329.8,4329.7,6.51242884]
[1757023383639,1e-08,4329.8,4329.7,7.43132884]
[1757023383834,0.28680001,4329.8,4329.7,7.792465]
[1757023384132,1e-08,4329.8,4329.7,7.54552884]
[1757023386578,1e-08,4329.8,4329.7,12.54427395]
[1757023386867,1e-08,4329.8,4329.7,16.33627395]
[1757023387037,1e-08,4329.8,4329.7,17.03042836]
[1757023387237,1e-08,4329.8,4329.7,18.96444162]
[1757023388166,1e-08,4329.8,4329.7,11.5636421]
[1757023388769,1e-08,4329.8,4329.7,12.4533421]
[1757023389162,1e-08,4329.8,4329.7,7.3588421]
[1757023389364,0.75440001,4329.8,4329.7,9.34282884]
[1757023389545,1.21400001,4329.8,4329.7,6.34282884]
[1757023389739,1.21400001,4329.8,4329.7,0.1152]
[1757023390076,1.32920001,4329.8,4329.7,3.918]
[1757023390370,1.32920001,4329.8,4329.5,3.919]
[1757023390371,2.30963851,4329.7,4329.5,3.919]
[1757023390570,1.32920001,4329.8,4329.4,3.919]
[1757023390571,1.214,4329.6,4329.4,3.919]
[1757023390773,1.0392,4329.5,4329.4,3.919]
[1757023390973,1.3292,4329.5,4329.4,3.919]
[1757023391747,1.3292,4329.5,4329.4,6.22878888]
[1757023391748,0.29,4329.5,4329.4,6.22878888]
[1757023392168,1.214,4329.5,4329.2,1.702]
[1757023392394,0.29,4329.5,4329.4,2.30978888]
[1757023392986,1e-08,4329.8,4329.7,2.30962884]
[1757023393145,1e-08,4329.8,4329.7,6.23262884]
[1757023393146,0.29000001,4329.8,4329.7,6.23262884]
[1757023393552,1.21400001,4329.8,4329.3,0.004]
[1757023393891,0.4596,4329.7,4329.4,3.925]
[1757023394183,0.4596,4329.7,4329.6,2.30968218]
[1757023394347,0.46440001,4329.8,4329.6,6.23568218]
[1757023394678,1e-08,4329.8,4329.7,2.30962884]
[1757023395153,0.29000001,4329.8,4329.7,2.30962884]
[1757023396249,0.29000001,4329.8,4329.6,3.926]
[1757023396443,0.29000001,4329.8,4329.7,2.30962884]
[1757023397480,1e-08,4329.8,4329.7,4.35506406]
[1757023397702,0.29000001,4329.8,4329.7,3.16416406]
[1757023397850,1.21400001,4329.8,4329.7,3.928]
[1757023398258,0.29000001,4329.8,4329.7,6.23762884]
[1757023398458,1e-08,4329.8,4329.7,6.53882884]
[1757023398662,1e-08,4329.8,4329.7,7.85468464]
[1757023398966,1e-08,4329.8,4329.7,7.42368464]
[1757023399165,1e-08,4329.8,4329.7,6.53882884]
[1757023399964,0.29000001,4329.8,4329.7,2.61082884]
[1757023400166,0.29000001,4329.8,4329.7,6.23862884]
[1757023400877,1e-08,4329.8,4329.7,6.23862884]
[1757023401203,0.29000001,4329.8,4329.7,6.23862884]
[1757023401589,0.29000001,4329.8,4329.7,2.30962884]
[1757023401902,1.21400001,4329.8,4329.7,6.35382884]
[1757023402068,1.21400001,4329.8,4329.7,0.1152]
[1757023402269,1.21400001,4329.8,4329.7,3.93]
[1757023402770,3.52357551,4329.8,4329.7,3.93]
[1757023403003,1.21400001,4329.8,4329.5,3.93]
[1757023403206,1.0392,4329.7,4329.5,3.93]
[1757023403500,1.214,4329.6,4329.5,3.93]
[1757023404080,1e-08,4329.8,4329.5,3.93]
[1757023404282,1e-08,4329.8,4329.6,2.42482913]
[1757023404600,1e-08,4329.8,4329.7,6.24062884]
[1757023404807,1e-08,4329.8,4329.7,6.54182884]
[1757023405379,1.21400001,4329.8,4329.6,0.1152]
[1757023405700,1.21400001,4329.8,4329.7,3.931]
[1757023405701,0.29000001,4329.8,4329.7,3.931]
[1757023406114,1.21400001,4329.8,4329.7,3.931]
[1757023407428,1.21400001,4329.8,4329.3,0.004]
[1757023407429,2.30967819,4329.7,4329.3,0.004]
[1757023407581,2.30967819,4329.7,4329.4,3.93]
[1757023407582,2.30962884,4329.7,4329.4,3.93]
[1757023407783,0.29,4329.5,4329.4,3.93]
[1757023408098,1.214,4329.5,4329.4,3.93]
[1757023408299,3.52373553,4329.5,4329.4,3.93]
[1757023408502,3.63893553,4329.5,4329.4,3.93]
[1757023408901,5.30978888,4329.4,4329.3,0.004]
[1757023409211,5.76938888,4329.4,4329.3,0.004]
[1757023409378,1.3292,4329.4,4329.3,0.004]
[1757023409692,3.63898888,4329.4,4329.3,0.004]
[1757023409887,6.63898888,4329.4,4329.3,0.004]
[1757023411428,1e-08,4329.8,4329.6,2.3096534]
[1757023411580,1e-08,4329.8,4329.7,3.93]
[1757023411785,1e-08,4329.8,4329.7,3.932]
[1757023412010,0.75440001,4329.8,4329.7,3.932]
[1757023412816,0.29000001,4329.8,4329.7,3.932]
[1757023413918,0.75440001,4329.8,4329.7,3.932]
[1757023414118,3.52357551,4329.8,4329.7,3.93]
[1757023414300,1.21400001,4329.8,4329.7,3.93]
[1757023415524,1.21400001,4329.8,4329.5,3.93]
[1757023415724,0.1152,4329.6,4329.5,3.93]
[1757023415907,1.3292,4329.6,4329.5,3.93]
[1757023417192,0.1152,4329.6,4329.5,6.54093553]
[1757023417413,0.1152,4329.6,4329.5,7.74876519]
[1757023417629,1e-08,4329.8,4329.6,2.30966368]
[1757023417926,0.29,4329.6,4329.3,1.706]
[1757023418112,0.29,4329.6,4329.4,3.928]
[1757023418615,0.11520001,4329.8,4329.5,0.3012]
[1757023418924,0.11520001,4329.8,4329.5,2.61089291]
[1757023419125,0.3097,4329.6,4329.4,3.928]
[1757023419921,0.11520001,4329.8,4329.4,6.23778427]
[1757023420497,0.11520001,4329.8,4329.5,2.30972813]
[1757023420718,0.11520001,4329.8,4329.4,6.23777546]
[1757023421033,0.11520001,4329.8,4329.4,3.928]
[1757023421343,0.11520001,4329.8,4329.4,4.4023]
[1757023421708,0.11520001,4329.8,4329.7,0.2875]
[1757023422028,0.11520001,4329.8,4329.7,4.2145]
[1757023422340,0.11520001,4329.8,4329.7,3.927]
[1757023422897,0.11520001,4329.8,4329.7,6.52412884]
[1757023423132,0.11520001,4329.8,4329.7,8.37081196]
[1757023423699,1e-08,4329.8,4329.7,8.37081196]
[1757023424027,1e-08,4329.8,4329.7,7.55901196]
[1757023424233,1e-08,4329.8,4329.7,11.48601196]
[1757023424525,1e-08,4329.8,4329.7,8.48701196]
[1757023424926,1e-08,4329.8,4329.7,2.71232884]
[1757023425114,1e-08,4329.8,4329.7,6.64032884]
[1757023425440,1e-08,4329.8,4329.7,7.60362884]
[1757023426042,1e-08,4329.8,4329.7,7.60562884]
[1757023427902,1e-08,4329.8,4329.7,2.71232884]
[1757023428103,1e-08,4329.8,4329.7,6.35282884]
[1757023428305,1e-08,4329.8,4329.7,6.64032884]
[1757023428541,1e-08,4329.8,4329.7,7.11462884]
[1757023430017,1e-08,4329.8,4329.7,6.64032884]
[1757023432441,1e-08,4329.8,4329.7,7.60362884]
[1757023432762,1e-08,4329.8,4329.7,8.59496525]
[1757023432944,1e-08,4329.8,4329.7,6.64032884]
[1757023434317,1e-08,4329.8,4329.7,7.11462884]
[1757023434722,1e-08,4329.8,4329.7,6.64032884]
[1757023434922,1e-08,4329.8,4329.7,7.60362884]
[1757023435317,1e-08,4329.8,4329.7,10.60362884]
[1757023435540,1e-08,4329.8,4329.7,11.89496525]
[1757023439155,1e-08,4329.8,4329.7,7.92366525]
[1757023439861,1e-08,4329.8,4329.7,7.63616525]
[1757023440029,1e-08,4329.8,4329.7,6.34482884]
[1757023440230,0.30970001,4329.8,4329.7,2.42482884]
[1757023440558,0.30970001,4329.8,4329.7,6.34582884]
[1757023440923,1e-08,4329.8,4329.7,6.63332884]
[1757023442224,1.24750001,4329.8,4329.7,3.92]
[1757023445151,0.30970001,4329.8,4329.7,3.92]
[1757023445920,1e-08,4329.8,4329.7,6.51712884]
[1757023446330,0.30970001,4329.8,4329.7,3.92]
[1757023446829,0.30970001,4329.8,4329.7,6.22962884]
[1757023447246,1e-08,4329.8,4329.7,6.51712884]
[1757023448952,1e-08,4329.8,4329.7,3.92]
[1757023449136,0.30990001,4329.8,4329.7,3.92]
[1757023450167,0.30990001,4329.8,4329.7,6.22962884]
[1757023452341,0.30990001,4329.8,4329.7,6.34482884]
[1757023453358,1e-08,4329.8,4329.7,6.65272884]
[1757023453755,1e-08,4329.8,4329.7,6.34482884]
[1757023455824,1e-08,4329.8,4329.7,6.65272884]
[1757023456052,1e-08,4329.8,4329.7,8.45177428]
[1757023462775,1e-08,4329.8,4329.7,4.53177428]
[1757023462954,1e-08,4329.8,4329.7,8.46287056]
[1757023463155,1e-08,4329.8,4329.7,8.43977428]
[1757023464846,1e-08,4329.8,4329.7,12.23177428]
[1757023465142,1e-08,4329.8,4329.7,7.53177428]
[1757023465356,1e-08,4329.8,4329.7,10.53937428]
[1757023466467,1e-08,4329.8,4329.7,10.99117428]
[1757023467345,1e-08,4329.8,4329.7,10.53937428]
[1757023467745,1e-08,4329.8,4329.7,10.63194555]
[1757023468244,1e-08,4329.8,4329.7,10.62994555]
[1757023470041,1e-08,4329.8,4329.7,11.53234555]
[1757023471671,0.001,4330.3,4329.7,11.53234555]
[1757023471872,0.80050001,4330.8,4330.5,2.30915828]
[1757023472073,0.80050001,4330.8,4330.6,6.21414218]
[1757023472245,0.4615,4330.7,4330.6,6.21414218]
[1757023472447,0.7714,4330.7,4330.6,6.21414218]
[1757023472641,0.7714,4330.7,4330.6,3.905]
[1757023472874,0.7714,4330.7,4330.6,6.21414884]
[1757023473063,0.7714,4330.7,4330.6,3.905]
[1757023473670,0.7714,4330.7,4330.4,0.1152]
[1757023473855,0.7714,4330.7,4330.5,3.904]
[1757023473856,1.2054,4330.7,4330.5,3.904]
[1757023474050,0.8955,4330.6,4330.5,3.904]
[1757023474250,1.3206,4330.6,4330.5,3.904]
[1757023477749,2.3092114,4330.5,4330.3,1.702]
[1757023477950,2.42435739,4330.6,4330.4,3.903]
[1757023478163,3.51460217,4330.5,4330.4,3.903]
[1757023478378,1.2054,4330.5,4330.4,3.903]
[1757023478548,3.51460217,4330.5,4330.4,3.901]
[1757023478949,1.2054,4330.5,4330.4,3.901]
[1757023479675,2.30925549,4330.4,4330.3,1.702]
[1757023479875,2.30925549,4330.4,4329.6,4.01567146]
[1757023479876,2.30933767,4330.3,4329.6,4.01567146]
[1757023480183,0.1152,4329.8,4329.7,3.9]
[1757023480349,1.3449,4329.8,4329.7,3.9]
[1757023480679,0.3106,4329.8,4329.7,3.9]
[1757023480881,0.1152,4330.1,4329.7,3.9]
[1757023481178,1.0343,4330.1,4329.7,6.20961651]
[1757023481754,0.3106,4329.8,4329.7,3.9]
[1757023482062,1.3449,4329.8,4329.7,3.9]
[1757023483985,8.65289689,4329.8,4329.6,0.004]
[1757023484168,0.4752,4329.7,4329.6,0.004]
[1757023484363,0.9191,4329.7,4329.6,0.004]
[1757023484570,1.2297,4329.7,4329.6,0.004]
[1757023485186,0.901,4329.7,4329.6,0.004]
[1757023485989,1.3449,4329.7,4329.6,0.004]
[1757023487498,3.65452884,4329.7,4329.6,0.004]
[1757023489402,1.3449,4329.7,4329.6,0.004]
[1757023489572,3.65452884,4329.7,4329.6,0.004]
[1757023492308,6.65452884,4329.7,4329.6,0.004]
[1757023493472,7.44652884,4329.7,4329.6,0.004]
[1757023494204,9.14852884,4329.7,4329.6,0.004]
[1757023494408,18.04694319,4329.7,4329.6,0.004]
[1757023499692,3.10178888,4329.4,4329.3,0.004]
[1757023499891,12.11340323,4329.4,4329.3,0.004]
[1757023500114,12.42400323,4329.4,4329.3,0.004]
[1757023500336,13.34310323,4329.4,4329.3,0.004]
[1757023500998,12.42400323,4329.4,4329.3,0.004]
[1757023501410,11.63100323,4329.4,4329.3,0.004]
[1757023501614,11.32040323,4329.4,4329.3,0.004]
[1757023502515,7.42340323,4329.4,4329.3,0.004]
[1757023502823,11.32040323,4329.4,4329.3,0.004]
[1757023503499,2.42498888,4329.4,4329.3,0.302]
[1757023503701,11.31940323,4329.4,4329.3,0.7393]
[1757023504120,11.31940323,4329.4,4329.3,0.302]
[1757023504810,8.11361435,4329.4,4329.3,0.302]
[1757023505006,8.11361435,4329.4,4329.3,0.7393]
[1757023505534,10.42340323,4329.4,4329.3,0.7393]
[1757023505738,10.42340323,4329.4,4329.3,0.302]
[1757023506037,10.42340323,4329.4,4329.3,1.2236]
[1757023506541,10.42340323,4329.4,4329.3,0.7393]
[1757023508808,10.71530323,4329.4,4329.3,0.004]
[1757023509003,10.42340323,4329.4,4329.3,0.3141]
[1757023510034,0.1152,4329.4,4329.3,1.2436]
[1757023512940,0.1152,4329.4,4329.3,0.7617]
[1757023513849,2.42498888,4329.4,4329.3,0.3141]
[1757023514040,0.1152,4329.4,4329.3,0.3141]
[1757023515230,0.001,4329.6,4329.5,2.30973553]
[1757023515559,0.001,4329.6,4329.5,3.78539474]
[1757023515744,0.001,4329.6,4329.5,5.02499474]
[1757023517756,0.001,4329.6,4329.5,2.71525921]
[1757023517934,0.001,4329.6,4329.5,5.02499474]
[1757023524050,0.001,4329.6,4329.5,8.02499474]
[1757023524666,0.001,4329.6,4329.5,8.14019474]
[1757023525564,0.001,4329.6,4329.5,14.02231539]
[1757023526069,0.001,4329.6,4329.5,17.91131539]
[1757023526632,0.001,4329.6,4329.5,18.00388451]
[1757023527034,0.001,4329.6,4329.5,9.12076386]
[1757023527440,0.001,4329.6,4329.5,18.67968451]
[1757023531142,0.001,4329.6,4329.5,18.70068451]
[1757023531369,0.001,4329.6,4329.5,18.70468451]
[1757023534066,0.001,4331.3,4330.7,2.30909552]
[1757023534266,0.001,4331.3,4330.7,14.03112572]
[1757023534466,0.001,4331.3,4330.7,15.27072572]
[1757023534667,0.001,4331.3,4330.7,15.73342572]
[1757023535263,0.001,4331.3,4330.7,9.36940507]
[1757023536173,0.001,4331.3,4330.7,4.70470507]
[1757023536478,0.2929,4330.8,4330.7,8.60970507]
[1757023537050,0.2929,4330.8,4330.7,4.70470507]
[1757023537354,1.1978,4330.8,4330.7,8.26220507]
[1757023537658,0.7556,4330.8,4330.7,8.26220507]
[1757023537880,0.2929,4330.8,4330.7,8.26220507]
[1757023538484,0.001,4330.8,4330.7,8.26220507]
[1757023539078,0.3001,4330.8,4330.7,8.26220507]
[1757023541581,0.7994,4330.8,4330.7,8.26220507]
[1757023541784,0.7994,4330.8,4330.7,8.25920507]
[1757023542479,0.7994,4330.8,4330.7,4.35720507]
[1757023542785,0.001,4330.8,4330.7,8.25920507]
[1757023542974,0.001,4330.8,4330.7,8.55300507]
[1757023544561,0.001,4330.8,4330.7,9.48330507]
[1757023545656,0.001,4330.8,4330.7,4.65100507]
[1757023545870,0.001,4330.8,4330.7,8.25820507]
[1757023546380,0.3001,4330.8,4330.7,8.25820507]
[1757023546768,0.3001,4330.8,4330.7,4.35720507]
[1757023547093,0.7994,4330.8,4330.7,4.12629552]
[1757023547291,0.7994,4330.8,4330.7,8.02529552]
[1757023547672,1.26,4330.8,4330.7,8.02529552]
[1757023548279,0.7994,4330.8,4330.7,8.02529552]
[1757023548480,0.3001,4330.8,4330.7,8.02529552]
[1757023548688,0.7994,4330.8,4330.7,8.02529552]
[1757023549070,1.26,4330.8,4330.7,8.02529552]
[1757023549287,0.7994,4330.8,4330.7,8.02529552]
[1757023549473,0.3001,4330.8,4330.7,8.02529552]
[1757023549682,0.001,4330.8,4330.7,9.12816131]
[1757023549884,0.3001,4330.8,4330.7,9.12816131]
[1757023550208,0.001,4330.8,4330.7,9.12816131]
[1757023552078,0.3001,4330.8,4330.7,9.12816131]
[1757023553204,0.3001,4330.8,4330.7,8.02529552]
[1757023553404,1.26,4330.8,4330.7,8.02529552]
[1757023553795,0.001,4330.8,4330.7,9.92619552]
[1757023554106,0.001,4330.8,4330.7,12.92619552]
[1757023554275,0.001,4330.8,4330.7,13.62022949]
[1757023554484,0.001,4330.8,4330.7,15.80138145]
[1757023559902,0.001,4330.8,4330.7,21.11738145]
[1757023562905,0.3001,4330.8,4330.7,19.10028145]
[1757023563206,0.001,4330.8,4330.7,19.10028145]
[1757023563613,0.3001,4330.8,4330.7,19.10028145]
[1757023563908,0.3001,4330.8,4330.7,19.21548145]
[1757023564293,1.26,4330.8,4330.7,16.21448145]
[1757023564492,1.26,4330.8,4330.7,19.21448145]
[1757023564687,1.26,4330.8,4330.7,14.03232949]
[1757023564890,1.26,4330.8,4330.7,13.33829552]
[1757023566881,1.26,4330.8,4330.7,5.7112]
[1757023567094,1.26,4330.8,4330.7,8.02029552]
[1757023567299,1.26,4330.8,4330.7,5.7112]
[1757023567517,1.26,4330.8,4330.7,8.02029552]
[1757023570791,1.26,4330.8,4330.7,0.1152]
[1757023571119,1.26,4330.8,4330.7,2.4712]
[1757023571295,1.26,4330.8,4330.7,2.356]
[1757023571618,1.26,4330.8,4330.5,0.004]
[1757023571788,1.26,4330.8,4330.6,3.893]
[1757023571987,0.9272,4330.7,4330.6,3.893]
[1757023572185,1.2183,4330.7,4330.6,3.893]
[1757023575208,1.2183,4330.7,4330.5,3.896]
[1757023575404,0.9272,4330.6,4330.5,3.896]
[1757023575606,1.2183,4330.6,4330.5,3.896]
[1757023575915,0.7722,4330.6,4330.5,3.896]
[1757023576220,1.2183,4330.6,4330.5,3.896]
[1757023578696,0.7722,4330.6,4330.5,3.896]
[1757023579516,0.7722,4330.6,4330.5,3.898]
[1757023579739,1.2183,4330.6,4330.5,3.898]
[1757023579911,1.2183,4330.6,4330.5,0.004]
[1757023580108,1.2183,4330.6,4330.5,3.896]
[1757023580641,6.52744884,4330.6,4330.5,0.004]
[1757023581308,4.2183,4330.6,4330.5,0.004]
[1757023581515,4.3335,4330.6,4330.5,0.004]
[1757023581707,0.4063,4330.6,4330.5,6.20620217]
[1757023581930,0.001,4330.8,4330.5,6.20620217]
[1757023582123,0.2911,4330.6,4330.5,3.897]
[1757023582612,0.2911,4330.6,4330.5,6.20620217]
[1757023582813,0.1162,4330.8,4330.5,6.20620217]
[1757023583041,0.1162,4330.8,4330.6,2.30913176]
[1757023583708,0.001,4330.8,4330.7,3.51309552]
[1757023583909,0.001,4330.8,4330.7,3.62829552]
[1757023584111,0.001,4330.8,4330.7,4.10939552]
[1757023584332,0.001,4330.8,4330.7,8.00639552]
[1757023584526,0.001,4330.8,4330.7,9.68862711]
[1757023586151,0.001,4330.8,4330.7,10.48062711]
[1757023586316,0.001,4330.8,4330.7,13.48062711]
[1757023587440,0.001,4330.8,4330.7,18.47547219]
[1757023588854,0.001,4330.8,4330.7,17.68447219]
[1757023591038,0.001,4330.8,4330.7,18.47647219]
[1757023592853,0.001,4330.8,4330.7,16.76657219]
[1757023593362,0.001,4330.8,4330.7,17.21507219]
[1757023593922,0.001,4330.8,4330.7,17.68347219]
[1757023598159,0.001,4330.8,4330.7,20.05347219]
[1757023598757,0.001,4330.8,4330.7,17.68347219]
[1757023600178,0.001,4330.8,4330.7,17.23827219]
[1757023601061,0.001,4330.8,4330.7,16.76657219]
[1757023601252,0.001,4330.8,4330.7,17.23827219]
[1757023606376,0.001,4330.8,4330.7,17.70627219]
[1757023609764,1.2469,4330.8,4330.7,9.58247219]
[1757023609964,1.2469,4330.8,4330.7,2.42429552]
[1757023610167,1.2469,4330.8,4330.7,6.31229552]
[1757023613268,1.2469,4330.8,4330.6,2.30914153]
[1757023613480,0.297,4330.8,4330.7,3.889]
[1757023614088,1.2469,4330.8,4330.7,3.889]
[1757023615600,1.2469,4330.8,4330.7,6.19809552]
[1757023616308,0.297,4330.8,4330.7,6.19809552]
[1757023616486,0.297,4330.8,4330.7,6.31329552]
[1757023616818,1.2469,4330.8,4330.7,6.31329552]
[1757023617171,0.001,4330.8,4330.7,6.60109552]
[1757023617970,0.001,4330.8,4330.7,6.31329552]
[1757023620029,0.297,4330.8,4330.7,6.31329552]
[1757023620975,0.001,4330.8,4330.7,7.93174372]
[1757023621180,0.001,4330.8,4330.7,11.40344372]
[1757023621495,0.001,4330.8,4330.7,11.51864372]
[1757023623686,0.001,4330.8,4330.7,16.83664372]
[1757023624813,0.001,4330.8,4330.7,17.62864372]
[1757023625717,0.4857,4332.7,4330.8,3.792]
[1757023626020,0.4857,4332.7,4332.6,2.3080829]
[1757023626220,1.2459,4332.7,4332.6,6.2010829]
[1757023626712,1.2459,4332.7,4332.6,3.892]
[1757023626918,1.2459,4332.7,4332.6,4.0072]
[1757023627423,1.2459,4332.7,4331.6,2.39496494]
[1757023627622,0.1152,4332.5,4331.9,0.1152]
[1757023627927,0.9499,4332.4,4332.0,3.894]
[1757023628210,0.296,4332.1,4332.0,3.894]
[1757023628600,1.2459,4332.1,4332.0,3.894]
[1757023629909,1.2459,4332.1,4331.6,1.701]
[1757023629910,6.24074508,4332.1,4331.6,1.701]
[1757023630110,0.4556,4332.0,4331.7,3.894]
[1757023630310,0.2943,4331.8,4331.7,3.894]
[1757023630512,1.2386,4331.8,4331.7,3.894]
[1757023630690,1.2386,4331.8,4331.6,1.701]
[1757023630891,0.9443,4331.7,4331.4,3.893]
[1757023631098,7.30351708,4331.5,4331.4,3.893]
[1757023631293,8.54211708,4331.5,4331.4,3.893]
[1757023632794,2.30884128,4331.2,4330.8,1.726]
[1757023632998,0.2943,4330.9,4330.8,1.726]
[1757023633196,0.783,4330.9,4330.8,5.622]
[1757023633700,1.2386,4330.9,4330.8,5.622]
[1757023633899,6.23344508,4330.9,4330.8,5.622]
[1757023634125,6.23344508,4330.9,4330.8,0.025]
[1757023634126,8.54243397,4330.9,4330.8,0.025]
[1757023635901,11.54243397,4330.9,4330.8,0.025]
[1757023637741,6.54758889,4330.9,4330.8,0.025]
[1757023637913,11.54243397,4330.9,4330.8,0.025]
[1757023640903,11.65763397,4330.9,4330.8,0.025]
[1757023641431,12.44963397,4330.9,4330.8,0.025]
[1757023641632,12.44963397,4330.9,4330.5,0.004]
[1757023641633,3.10114884,4330.6,4330.5,0.004]
[1757023641832,15.10919392,4330.6,4330.5,0.004]
[1757023642137,16.34779392,4330.6,4330.5,0.004]
[1757023646362,6.10152215,4329.9,4329.6,0.004]
[1757023646525,0.792,4329.7,4329.1,0.004]
[1757023646848,15.40302726,4329.6,4329.1,0.004]
[1757023647049,16.34732726,4329.6,4329.1,0.004]
[1757023647216,12.45032726,4329.6,4329.1,0.004]
[1757023647416,16.34732726,4329.6,4329.1,0.004]
[1757023649525,17.24330745,4329.6,4329.1,0.004]
[1757023649721,14.93362527,4329.6,4329.1,0.004]
[1757023649923,0.792,4329.0,4328.9,0.004]
[1757023650126,17.59482758,4329.0,4328.9,0.004]
[1757023650326,18.83342758,4329.0,4328.9,0.004]
[1757023650732,18.83342758,4329.0,4328.9,1e-08]
[1757023652750,7.80400231,4329.0,4328.9,1e-08]
[1757023652928,11.99730231,4329.0,4328.9,1e-08]
[1757023653125,11.70300231,4329.0,4328.9,1e-08]
[1757023653333,11.70300231,4329.0,4328.9,0.31390001]
[1757023654711,7.80400231,4329.0,4328.9,0.76970001]
[1757023654866,11.70300231,4329.0,4328.9,1.25150001]
[1757023655266,3.0,4329.0,4328.9,1.25150001]
[1757023655489,1.703,4329.8,4328.9,1.25150001]
[1757023655490,2.30988185,4329.3,4328.9,1.25150001]
[1757023655804,2.30989988,4329.2,4329.0,0.9376]
[1757023655964,5.30985299,4329.3,4329.2,0.3139]
[1757023656163,5.30985299,4329.3,4329.2,1.2515]
[1757023657580,2.30985299,4329.3,4329.2,1.2515]
[1757023659895,2.42505299,4329.3,4329.2,1.2515]
[1757023661969,0.1152,4329.3,4329.2,1.2515]
[1757023662308,0.4887,4330.4,4329.2,1.2515]
[1757023662484,0.1152,4329.8,4329.4,2.30975938]
[1757023662807,0.1152,4329.8,4329.7,0.3086]
[1757023663201,0.1152,4329.8,4329.7,1.212]
[1757023665640,10.42164804,4331.4,4329.7,1.212]
[1757023665641,0.025,4330.8,4329.7,1.212]
[1757023665773,0.025,4330.8,4329.8,3.21297421]
[1757023665774,0.1152,4330.6,4329.8,3.21297421]
[1757023665970,2.30919013,4330.6,4329.9,3.898]
[1757023666189,0.025,4330.8,4329.9,3.898]
[1757023666190,0.1152,4330.2,4330.0,0.4724]
[1757023666400,0.1152,4330.2,4330.1,0.431]
[1757023666597,0.1152,4330.2,4330.1,1.212]
[1757023668799,0.1152,4330.2,4330.1,3.52141548]
[1757023669534,0.1152,4330.2,4330.1,1.212]
[1757023670831,0.1152,4330.5,4330.2,2.30933615]
[1757023670993,0.1152,4330.5,4330.4,0.3086]
[1757023671409,0.1152,4330.5,4330.4,1.212]
[1757023672515,0.1152,4330.5,4330.4,5.11]
[1757023673220,0.1152,4330.5,4330.4,4.6376]
[1757023675399,0.1152,4330.5,4330.4,5.11]
[1757023675599,0.1152,4330.5,4330.4,8.33138978]
[1757023675799,0.026,4330.8,4330.7,2.30909552]
[1757023676212,0.026,4330.8,4330.7,3.52109552]
[1757023678220,0.026,4330.8,4330.7,7.41609552]
[1757023680528,0.026,4330.8,4330.7,8.4913554]
[1757023680691,0.026,4330.8,4330.7,8.6065554]
[1757023688338,0.026,4330.8,4330.7,8.69910397]
[1757023694544,0.026,4330.8,4330.7,8.26810397]
[1757023694711,0.026,4330.8,4330.7,8.70880397]
[1757023694912,0.026,4330.8,4330.7,4.81380397]
[1757023695112,0.001,4331.3,4331.2,2.30882896]
[1757023695313,0.001,4332.4,4331.7,2.30856245]
[1757023695513,0.001,4332.4,4331.7,9.50056245]
[1757023695719,0.001,4332.4,4331.7,9.70829089]
[1757023696038,0.001,4332.4,4331.7,11.35068367]
[1757023697443,0.001,4332.4,4331.7,11.84408367]
[1757023699545,0.001,4332.4,4331.7,17.22755662]
[1757023701120,0.9201,4332.4,4331.7,16.78685662]
[1757023701719,0.9201,4332.4,4331.7,16.78885662]
[1757023705522,0.9201,4332.4,4331.7,17.22955662]
[1757023706950,0.001,4332.4,4331.7,17.72295662]
[1757023707961,0.001,4332.4,4331.7,17.28225662]
[1757023708333,0.001,4332.4,4331.7,16.78885662]
[1757023708533,0.4689,4332.4,4331.7,16.78885662]
[1757023708737,0.4512,4332.3,4331.7,16.78885662]
[1757023708940,0.4689,4332.2,4331.7,16.78885662]
[1757023709661,0.4689,4332.2,4331.7,15.60359449]
[1757023710958,0.3387,4331.8,4331.7,11.71159449]
[1757023711162,0.3387,4331.8,4331.7,15.60059449]
[1757023711331,1.2578,4331.8,4331.7,6.40529089]
[1757023712461,1.2578,4331.8,4331.7,2.51629089]
[1757023712658,1.2578,4331.8,4331.7,6.40529089]
[1757023712862,1.2578,4331.8,4331.7,6.31276245]
[1757023713938,1.2578,4331.8,4331.7,4.0042]
[1757023714364,1.2578,4331.8,4331.7,6.31276245]
[1757023714568,1.2578,4331.8,4331.7,4.0042]
[1757023715267,1.2578,4331.8,4331.7,0.1152]
[1757023715568,1.373,4331.8,4331.2,1.8172]